fUST/lending_fUST_20250211
["ID","MTS","AMOUNT","RATE_DAILY","PERIOD"]
[352638824,1739213442005,-500.0,0.00012191,2]
[352638825,1739213442015,-500.0,0.00012191,2]
[352638826,1739213442025,-500.0,0.00012191,2]
[352638827,1739213442034,-2633.5,0.00012191,2]
[352638828,1739213442044,-500.0,0.00012191,2]
[352638829,1739213442054,-7826.63,0.00012191,2]
[352638830,1739213442063,-500.0,0.00012191,2]
[352638831,1739213442073,-500.0,0.00012191,2]
[352638832,1739213442082,-1317.92,0.00012191,2]
[352638833,1739213442091,-500.0,0.00012191,2]
[352638834,1739213442101,-740.91,0.00012191,2]
[352638836,1739213442111,-500.0,0.00012191,2]
[352638837,1739213442120,-500.0,0.00012191,2]
[352638838,1739213442129,-500.0,0.00012191,2]
[352638839,1739213442140,-4572.85,0.00012191,2]
[352638840,1739213442150,-674.59,0.00012191,2]
[352638841,1739213442159,-610.04,0.00012191,2]
[352638842,1739213442168,-1159.12,0.00012191,2]
[352638843,1739213442178,-641.92,0.00012191,2]
[352638844,1739213442187,-500.0,0.00012191,2]
[352638845,1739213442197,-756.82,0.00012191,2]
[352638846,1739213442207,-1551.91,0.00012191,2]
[352638847,1739213442216,-500.0,0.00012191,2]
[352638848,1739213442226,-583.58,0.00012191,2]
[352638849,1739213442235,-3473.43,0.00012191,2]
[352638850,1739213442245,-1641.18,0.00012191,2]
[352638851,1739213442254,-591.57,0.00012191,2]
[352638852,1739213442264,-1180.37,0.00012191,2]
[352638854,1739213442273,-1971.06,0.00012191,2]
[352638858,1739213442283,-1579.43,0.00012191,2]
[352638860,1739213442293,-500.0,0.00012191,2]
[352638861,1739213442302,-360.60598572,0.00012193,2]
[352638862,1739213442311,-500.0,0.00012328,2]
[352638863,1739213442321,-500.0,0.00012328,2]
[352638864,1739213442331,-2633.5,0.00012328,2]
[352638866,1739213442341,-500.0,0.00012328,2]
[352638867,1739213442350,-7826.63,0.00012328,2]
[352638869,1739213442360,-500.0,0.00012328,2]
[352638870,1739213442369,-500.0,0.00012328,2]
[352638871,1739213442379,-1317.92,0.00012328,2]
[352638872,1739213442388,-500.0,0.00012328,2]
[352638873,1739213442397,-740.91,0.00012328,2]
[352638874,1739213442406,-500.0,0.00012328,2]
[352638875,1739213442418,-500.0,0.00012328,2]
[352638876,1739213442427,-500.0,0.00012328,2]
[352638877,1739213442436,-4572.85,0.00012328,2]
[352638878,1739213442446,-674.59,0.00012328,2]
[352638879,1739213442455,-610.04,0.00012328,2]
[352638880,1739213442465,-1159.12,0.00012328,2]
[352638881,1739213442474,-641.92,0.00012328,2]
[352638882,1739213442483,-500.0,0.00012328,2]
[352638885,1739213442493,-756.82,0.00012328,2]
[352638886,1739213442502,-1551.91,0.00012328,2]
[352638888,1739213442511,-500.0,0.00012328,2]
[352638889,1739213442521,-583.58,0.00012328,2]
[352638891,1739213442530,-3473.43,0.00012328,2]
[352638894,1739213442539,-1641.18,0.00012328,2]
[352638897,1739213442549,-591.57,0.00012328,2]
[352638898,1739213442558,-1180.37,0.00012328,2]
[352638899,1739213442568,-1971.06,0.00012328,2]
[352638900,1739213442577,-1579.43,0.00012328,2]
[352638901,1739213442587,-588.53729145,0.00012328,2]
[352638902,1739213442596,-500.0,0.00012426,2]
[352638903,1739213442605,-501.12441615,0.00012444,2]
[352638904,1739213442615,-500.0,0.00012444,2]
[352638905,1739213442624,-500.0,0.00012464,2]
[352638906,1739213442635,-500.0,0.00012465,2]
[352638907,1739213442644,-500.0,0.00012465,2]
[352638908,1739213442654,-2633.5,0.00012465,2]
[352638909,1739213442663,-270.97362692,0.00012465,2]
[352638910,1739213442673,-7826.63,0.00012465,2]
[352638911,1739213442683,-500.0,0.00012465,2]
[352638912,1739213442692,-500.0,0.00012465,2]
[352638913,1739213442701,-1317.92,0.00012465,2]
[352638914,1739213442710,-500.0,0.00012465,2]
[352638915,1739213442720,-740.91,0.00012465,2]
[352638916,1739213442729,-500.0,0.00012465,2]
[352638917,1739213442738,-500.0,0.00012465,2]
[352638918,1739213442747,-500.0,0.00012465,2]
[352638919,1739213442757,-4572.85,0.00012465,2]
[352638920,1739213442766,-674.59,0.00012465,2]
[352638921,1739213442775,-610.04,0.00012465,2]
[352638922,1739213442784,-1159.12,0.00012465,2]
[352638923,1739213442794,-641.92,0.00012465,2]
[352638924,1739213442803,-169.62,0.00012465,2]
[352638926,1739213442813,-756.82,0.00012465,2]
[352638927,1739213442822,-1551.91,0.00012465,2]
[352638928,1739213442832,-500.0,0.00012465,2]
[352638929,1739213442841,-583.58,0.00012465,2]
[352638930,1739213442851,-3473.43,0.00012465,2]
[352638931,1739213442861,-1641.18,0.00012465,2]
[352638932,1739213442870,-591.57,0.00012465,2]
[352638933,1739213442879,-1180.37,0.00012465,2]
[352638934,1739213442889,-1971.06,0.00012465,2]
[352638935,1739213442898,-1579.43,0.00012465,2]
[352638936,1739213442907,-500.0,0.00012602,2]
[352638937,1739213442917,-500.0,0.00012602,2]
[352638938,1739213442926,-2633.5,0.00012602,2]
[352638939,1739213442936,-7826.63,0.00012602,2]
[352638940,1739213442945,-175.91,0.00012602,2]
[352638941,1739213442954,-500.0,0.00012602,2]
[352638942,1739213442964,-1317.92,0.00012602,2]
[352638943,1739213442973,-500.0,0.00012602,2]
[352638944,1739213442983,-740.91,0.00012602,2]
[352638945,1739213442992,-500.0,0.00012602,2]
[352638946,1739213443002,-500.0,0.00012602,2]
[352638947,1739213443011,-500.0,0.00012602,2]
[352638948,1739213443021,-4572.85,0.00012602,2]
[352638949,1739213443030,-674.59,0.00012602,2]
[352638950,1739213443040,-610.04,0.00012602,2]
[352638951,1739213443049,-1159.12,0.00012602,2]
[352638952,1739213443059,-641.92,0.00012602,2]
[352638953,1739213443069,-756.82,0.00012602,2]
[352638954,1739213443079,-1551.91,0.00012602,2]
[352638955,1739213443089,-500.0,0.00012602,2]
[352638956,1739213443099,-583.58,0.00012602,2]
[352638957,1739213443108,-3473.43,0.00012602,2]
[352638958,1739213443117,-1641.18,0.00012602,2]
[352638960,1739213443127,-591.57,0.00012602,2]
[352638962,1739213443136,-1180.37,0.00012602,2]
[352638964,1739213443145,-1971.06,0.00012602,2]
[352638966,1739213443154,-1579.43,0.00012602,2]
[352638968,1739213443164,-500.0,0.00012739,2]
[352638970,1739213443173,-577.49,0.00012739,2]
[352638971,1739213443182,-2633.5,0.00012739,2]
[352638972,1739213443191,-7826.63,0.00012739,2]
[352638973,1739213443200,-500.0,0.00012739,2]
[352638974,1739213443210,-1317.92,0.00012739,2]
[352638975,1739213443220,-500.0,0.00012739,2]
[352638976,1739213443229,-740.91,0.00012739,2]
[352638977,1739213443238,-500.0,0.00012739,2]
[352638978,1739213443248,-500.0,0.00012739,2]
[352638979,1739213443257,-500.0,0.00012739,2]
[352638980,1739213443266,-4572.85,0.00012739,2]
[352638981,1739213443275,-674.59,0.00012739,2]
[352638982,1739213443284,-610.04,0.00012739,2]
[352638983,1739213443294,-1159.12,0.00012739,2]
[352638984,1739213443303,-641.92,0.00012739,2]
[352638985,1739213443312,-756.82,0.00012739,2]
[352638986,1739213443321,-1551.91,0.00012739,2]
[352638987,1739213443330,-500.0,0.00012739,2]
[352638988,1739213443341,-583.58,0.00012739,2]
[352638989,1739213443351,-3473.43,0.00012739,2]
[352638990,1739213443359,-1641.18,0.00012739,2]
[352638991,1739213443369,-591.57,0.00012739,2]
[352638992,1739213443378,-1180.37,0.00012739,2]
[352638993,1739213443387,-1971.06,0.00012739,2]
[352638994,1739213443396,-1579.43,0.00012739,2]
[352638995,1739213443406,-624.94,0.00012876,2]
[352638996,1739213443417,-2633.5,0.00012876,2]
[352638997,1739213443426,-7826.63,0.00012876,2]
[352638998,1739213443436,-500.0,0.00012876,2]
[352638999,1739213443445,-1317.92,0.00012876,2]
[352639000,1739213443455,-641.66358274,0.00012876,2]
[352639001,1739213443464,-740.91,0.00012876,2]
[352639002,1739213443473,-500.0,0.00012876,2]
[352639003,1739213443482,-500.0,0.00012876,3]
[352639004,1739213443492,-500.0,0.00012876,3]
[352639005,1739213443502,-500.0,0.00012876,3]
[352639006,1739213443511,-500.0,0.00012876,2]
[352639007,1739213443520,-500.0,0.00012876,2]
[352639008,1739213443530,-4572.85,0.00012876,2]
[352639009,1739213443539,-674.59,0.00012876,2]
[352639010,1739213443549,-610.04,0.00012876,2]
[352639011,1739213443579,-1159.12,0.00012876,2]
[352639012,1739213443588,-641.92,0.00012876,2]
[352639013,1739213443598,-756.82,0.00012876,2]
[352639014,1739213443607,-1551.91,0.00012876,2]
[352639015,1739213443617,-500.0,0.00012876,2]
[352639016,1739213443626,-583.58,0.00012876,2]
[352639017,1739213443635,-3473.43,0.00012876,2]
[352639018,1739213443645,-1641.18,0.00012876,2]
[352639019,1739213443654,-591.57,0.00012876,2]
[352639020,1739213443663,-1180.37,0.00012876,2]
[352639021,1739213443672,-1971.06,0.00012876,2]
[352639022,1739213443682,-1579.43,0.00012876,2]
[352639023,1739213443691,-151.0,0.000129,2]
[352639024,1739213443700,-151.35383104,0.000129,2]
[352639025,1739213443709,-151.35383102,0.000129,2]
[352639026,1739213443718,-151.35383102,0.00012937,2]
[352639027,1739213443727,-500.0,0.00013012,2]
[352639028,1739213443737,-2633.5,0.00013013,2]
[352639029,1739213443747,-7826.63,0.00013013,2]
[352639030,1739213443756,-500.0,0.00013013,2]
[352639031,1739213443765,-1317.92,0.00013013,2]
[352639032,1739213443774,-740.91,0.00013013,2]
[352639033,1739213443783,-500.0,0.00013013,2]
[352639034,1739213443792,-484.97,0.00013013,2]
[352639035,1739213443802,-500.0,0.00013013,2]
[352639036,1739213443811,-4572.85,0.00013013,2]
[352639037,1739213443820,-674.59,0.00013013,2]
[352639038,1739213443830,-610.04,0.00013013,2]
[352639039,1739213443839,-1159.12,0.00013013,2]
[352639040,1739213443848,-641.92,0.00013013,2]
[352639041,1739213443857,-756.82,0.00013013,2]
[352639042,1739213443866,-1551.91,0.00013013,2]
[352639043,1739213443875,-500.0,0.00013013,2]
[352639044,1739213443884,-583.58,0.00013013,2]
[352639045,1739213443894,-3473.43,0.00013013,2]
[352639046,1739213443903,-1641.18,0.00013013,2]
[352639047,1739213443912,-591.57,0.00013013,2]
[352639048,1739213443921,-1180.37,0.00013013,2]
[352639049,1739213443930,-1971.06,0.00013013,2]
[352639050,1739213443939,-1579.43,0.00013013,2]
[352639051,1739213443948,-2633.5,0.0001315,2]
[352639052,1739213443957,-7826.63,0.0001315,2]
[352639053,1739213443966,-500.0,0.0001315,2]
[352639054,1739213443975,-1317.92,0.0001315,2]
[352639055,1739213443985,-740.91,0.0001315,2]
[352639056,1739213443994,-500.0,0.0001315,2]
[352639057,1739213444003,-500.0,0.0001315,2]
[352639058,1739213444012,-4572.85,0.0001315,2]
[352639059,1739213444021,-674.59,0.0001315,2]
[352639060,1739213444031,-610.04,0.0001315,2]
[352639061,1739213444040,-1159.12,0.0001315,2]
[352639062,1739213444049,-641.92,0.0001315,2]
[352639063,1739213444058,-756.82,0.0001315,2]
[352639064,1739213444068,-1551.91,0.0001315,2]
[352639065,1739213444077,-500.0,0.0001315,2]
[352639066,1739213444087,-583.58,0.0001315,2]
[352639067,1739213444096,-3473.43,0.0001315,2]
[352639068,1739213444105,-1641.18,0.0001315,2]
[352639069,1739213444114,-591.57,0.0001315,2]
[352639070,1739213444123,-1180.37,0.0001315,2]
[352639071,1739213444132,-1971.06,0.0001315,2]
[352639072,1739213444141,-1579.43,0.0001315,2]
[352639073,1739213444150,-587.0,0.00013232,2]
[352639074,1739213444159,-2633.5,0.00013287,2]
[352639075,1739213444168,-7826.63,0.00013287,2]
[352639076,1739213444177,-500.0,0.00013287,2]
[352639077,1739213444186,-1317.92,0.00013287,2]
[352639078,1739213444195,-740.91,0.00013287,2]
[352639079,1739213444204,-500.0,0.00013287,2]
[352639080,1739213444213,-500.0,0.00013287,2]
[352639081,1739213444222,-4572.85,0.00013287,2]
[352639082,1739213444231,-674.59,0.00013287,2]
[352639083,1739213444241,-610.04,0.00013287,2]
[352639084,1739213444249,-1159.12,0.00013287,2]
[352639085,1739213444258,-641.92,0.00013287,2]
[352639086,1739213444268,-756.82,0.00013287,2]
[352639087,1739213444277,-1551.91,0.00013287,2]
[352639088,1739213444286,-500.0,0.00013287,2]
[352639089,1739213444294,-583.58,0.00013287,2]
[352639090,1739213444303,-3473.43,0.00013287,2]
[352639091,1739213444312,-1641.18,0.00013287,2]
[352639092,1739213444321,-591.57,0.00013287,2]
[352639093,1739213444330,-1180.37,0.00013287,2]
[352639094,1739213444339,-1971.06,0.00013287,2]
[352639095,1739213444348,-1579.43,0.00013287,2]
[352639096,1739213444357,-500.0,0.00013385,2]
[352639097,1739213444367,-2633.5,0.00013424,2]
[352639098,1739213444375,-7826.63,0.00013424,2]
[352639099,1739213444384,-500.0,0.00013424,2]
[352639100,1739213444393,-1317.92,0.00013424,2]
[352639101,1739213444402,-740.91,0.00013424,2]
[352639102,1739213444412,-500.0,0.00013424,2]
[352639103,1739213444424,-500.0,0.00013424,2]
[352639104,1739213444433,-4572.85,0.00013424,2]
[352639105,1739213444442,-674.59,0.00013424,2]
[352639106,1739213444451,-610.04,0.00013424,2]
[352639107,1739213444461,-1159.12,0.00013424,2]
[352639108,1739213444470,-641.92,0.00013424,2]
[352639109,1739213444479,-756.82,0.00013424,2]
[352639110,1739213444488,-1551.91,0.00013424,2]
[352639111,1739213444497,-500.0,0.00013424,2]
[352639112,1739213444506,-583.58,0.00013424,2]
[352639113,1739213444514,-3473.43,0.00013424,2]
[352639114,1739213444524,-1641.18,0.00013424,2]
[352639115,1739213444533,-591.57,0.00013424,2]
[352639116,1739213444541,-1180.37,0.00013424,2]
[352639117,1739213444551,-1971.06,0.00013424,2]
[352639118,1739213444560,-1579.43,0.00013424,2]
[352639119,1739213444569,-151.0,0.000135,2]
[352639120,1739213444580,-500.0,0.0001356,2]
[352639121,1739213444589,-2633.5,0.00013561,2]
[352639122,1739213444599,-7826.63,0.00013561,2]
[352639123,1739213444608,-570.36,0.00013561,2]
[352639124,1739213444618,-1317.92,0.00013561,2]
[352639125,1739213444627,-740.91,0.00013561,2]
[352639126,1739213444636,-500.0,0.00013561,2]
[352639127,1739213444646,-500.0,0.00013561,2]
[352639128,1739213444656,-4572.85,0.00013561,2]
[352639129,1739213444666,-674.59,0.00013561,2]
[352639130,1739213444675,-610.04,0.00013561,2]
[352639131,1739213444688,-1159.12,0.00013561,2]
[352639132,1739213444698,-641.92,0.00013561,2]
[352639133,1739213444708,-756.82,0.00013561,2]
[352639134,1739213444717,-1551.91,0.00013561,2]
[352639135,1739213444727,-217.2,0.00013561,2]
[352639136,1739213444737,-583.58,0.00013561,2]
[352639137,1739213444747,-3473.43,0.00013561,2]
[352639138,1739213444757,-1641.18,0.00013561,2]
[352639139,1739213444766,-591.57,0.00013561,2]
[352639140,1739213444775,-1180.37,0.00013561,2]
[352639141,1739213444786,-1971.06,0.00013561,2]
[352639142,1739213444795,-1579.43,0.00013561,2]
[352639143,1739213444806,-2633.5,0.00013698,2]
[352639144,1739213444816,-7826.63,0.00013698,2]
[352639145,1739213444825,-1317.92,0.00013698,2]
[352639146,1739213444836,-740.91,0.00013698,2]
[352639147,1739213444846,-500.0,0.00013698,2]
[352639148,1739213444855,-314.81246229,0.00013698,2]
[352639149,1739213444865,-4572.85,0.00013698,2]
[352639150,1739213444874,-674.59,0.00013698,2]
[352639151,1739213444884,-610.04,0.00013698,2]
[352639152,1739213444894,-1159.12,0.00013698,2]
[352639153,1739213444903,-641.92,0.00013698,2]
[352639154,1739213444912,-756.82,0.00013698,2]
[352639155,1739213444922,-1551.91,0.00013698,2]
[352639156,1739213444932,-583.58,0.00013698,2]
[352639157,1739213444942,-3473.43,0.00013698,2]
[352639158,1739213444952,-1641.18,0.00013698,2]
[352639159,1739213444962,-591.57,0.00013698,2]
[352639160,1739213444971,-1180.37,0.00013698,2]
[352639161,1739213444981,-1971.06,0.00013698,2]
[352639162,1739213444990,-1579.43,0.00013698,2]
[352639163,1739213445000,-161.327931,0.00013699,2]
[352639164,1739213445010,-2633.5,0.00013835,2]
[352639165,1739213445019,-7826.63,0.00013835,2]
[352639166,1739213445030,-1317.92,0.00013835,2]
[352639167,1739213445039,-740.91,0.00013835,2]
[352639168,1739213445049,-276.11080291,0.00013835,2]
[352639169,1739213445058,-4572.85,0.00013835,2]
[352639170,1739213445067,-674.59,0.00013835,2]
[352639171,1739213445077,-610.04,0.00013835,2]
[352639172,1739213445088,-1159.12,0.00013835,2]
[352639173,1739213445097,-641.92,0.00013835,2]
[352639174,1739213445107,-756.82,0.00013835,2]
[352639175,1739213445117,-1551.91,0.00013835,2]
[352639176,1739213445127,-583.58,0.00013835,2]
[352639177,1739213445136,-3473.43,0.00013835,2]
[352639178,1739213445146,-1641.18,0.00013835,2]
[352639179,1739213445156,-591.57,0.00013835,2]
[352639180,1739213445165,-1180.37,0.00013835,2]
[352639181,1739213445175,-1971.06,0.00013835,2]
[352639182,1739213445185,-1579.43,0.00013835,2]
[352639183,1739213445194,-2633.5,0.00013972,2]
[352639184,1739213445204,-7826.63,0.00013972,2]
[352639185,1739213445213,-1317.92,0.00013972,2]
[352639186,1739213445224,-740.91,0.00013972,2]
[352639188,1739213445233,-4572.85,0.00013972,2]
[352639189,1739213445243,-674.59,0.00013972,2]
[352639190,1739213445252,-610.04,0.00013972,2]
[352639191,1739213445262,-1159.12,0.00013972,2]
[352639192,1739213445271,-641.92,0.00013972,2]
[352639194,1739213445281,-756.82,0.00013972,2]
[352639197,1739213445290,-1551.91,0.00013972,2]
[352639200,1739213445300,-583.58,0.00013972,2]
[352639202,1739213445310,-3473.43,0.00013972,2]
[352639204,1739213445320,-1641.18,0.00013972,2]
[352639206,1739213445330,-591.57,0.00013972,2]
[352639209,1739213445339,-1180.37,0.00013972,2]
[352639211,1739213445349,-1971.06,0.00013972,2]
[352639213,1739213445358,-1579.43,0.00013972,2]
[352639215,1739213445368,-151.35383102,0.00013976,2]
[352639217,1739213445380,-480.0,0.00014,4]
[352639219,1739213445390,-151.0,0.000141,2]
[352639221,1739213445399,-2633.61810944,0.00014109,2]
[352639223,1739213445409,-7826.8194751,0.00014109,2]
[352639225,1739213445424,-1318.07603164,0.00014109,2]
[352639227,1739213445433,-740.9214262,0.00014109,2]
[352639230,1739213445443,-4573.08649542,0.00014109,2]
[352639233,1739213445453,-674.68,0.00014109,2]
[352639234,1739213445463,-610.24,0.00014109,2]
[352639235,1739213445472,-1159.25,0.00014109,2]
[352639236,1739213445482,-642.12377349,0.00014109,2]
[352639237,1739213445491,-756.96,0.00014109,2]
[352639238,1739213445500,-1551.96,0.00014109,2]
[352639239,1739213445510,-583.73,0.00014109,2]
[352639240,1739213445519,-3473.60141532,0.00014109,2]
[352639241,1739213445529,-1641.22118429,0.00014109,2]
[352639242,1739213445539,-591.59,0.00014109,2]
[352639243,1739213445549,-1180.4,0.00014109,2]
[352639244,1739213445558,-1971.07245433,0.00014109,2]
[352639245,1739213445568,-1579.58,0.00014109,2]
[352639246,1739213445577,-156.87499977,0.00014112,2]
[352639247,1739213445587,-199.397,0.00014112,2]
[352639248,1739213445596,-1738.24,0.000145,2]
[352639249,1739213445606,-265.34,0.00014676,2]
[352639250,1739213445616,-150.0,0.00014677,2]
[352639251,1739213445625,-538.0,0.00014677,2]
[352639252,1739213445635,-1975.0,0.00014677,2]
[352639253,1739213445644,-2296.0,0.00014677,2]
[352639254,1739213445654,-396.0,0.00014677,2]
[352639256,1739213445663,-150.204,0.00014677,2]
[352639257,1739213445673,-151.0,0.000147,2]
[352639258,1739213445683,-151.35383102,0.00015015,2]
[352639259,1739213445694,-166.0,0.00015068,2]
[352639260,1739213445704,-151.0,0.000153,2]
[352639261,1739213445713,-480.0,0.000155,5]
[352639263,1739213445722,-500.0,0.00015795,2]
[352639265,1739213445732,-500.0,0.00015895,2]
[352639266,1739213445742,-151.0,0.000159,2]
[352639267,1739213445751,-500.0,0.00015995,2]
[352639268,1739213445761,-151.0,0.00016,2]
[352639269,1739213445771,-501.901,0.00016023,2]
[352639270,1739213445782,-151.35383102,0.00016055,2]
[352639271,1739213445792,-500.0,0.00016095,2]
[352639272,1739213445802,-500.0,0.00016125,2]
[352639273,1739213445811,-473.64374368,0.00016135,2]
[352639274,1739213445821,-631.86,0.00016164,2]
[352639275,1739213445832,-500.0,0.00016195,2]
[352639276,1739213445842,-354.8426056,0.00016247,2]
[352639277,1739213445852,-354.8426056,0.00016247,2]
[352639278,1739213445862,-354.8426056,0.00016247,2]
[352639279,1739213445873,-354.8426056,0.00016247,2]
[352639280,1739213445884,-354.8426056,0.00016247,2]
[352639281,1739213445894,-500.0,0.00016295,2]
[352639282,1739213445904,-154.094,0.0001634,2]
[352639283,1739213445914,-500.0,0.00016395,2]
[352639284,1739213445924,-500.0,0.00016438,2]
[352639285,1739213445934,-500.0,0.00016438,2]
[352639286,1739213445943,-500.0,0.00016438,2]
[352639287,1739213445953,-500.0,0.00016438,2]
[352639288,1739213445963,-500.0,0.00016495,2]
[352639289,1739213445973,-317.0,0.0001659,2]
[352639290,1739213445983,-500.0,0.00016595,2]
[352639291,1739213445994,-151.0,0.000166,2]
[352639292,1739213446004,-500.0,0.00016695,2]
[352639293,1739213446013,-500.0,0.00016795,2]
[352639294,1739213446023,-23323.86496613,0.00016807,14]
[352639295,1739213446202,-73936.83664082,0.00016807,14]
[352639296,1739213446212,-13267.29691025,0.00016838,2]
[352639297,1739213446222,-500.0,0.00016895,2]
[352639298,1739213446231,-500.0,0.00016986,3]
[352639299,1739213446241,-500.0,0.00016995,2]
[352639300,1739213446250,-1267.43579564,0.00017,3]
[352639301,1739213446260,-480.0,0.00017,6]
[352639302,1739213446269,-170.4501297,0.00017026,2]
[352639303,1739213446279,-151.35383102,0.00017094,2]
[352639304,1739213446288,-5463.96812118,0.00017094,2]
[352639305,1739213446298,-500.0,0.00017095,2]
[352639306,1739213446307,-2000.0,0.000171,2]
[352639307,1739213446318,-3000.0,0.00017109,2]
[352639308,1739213446327,-161.327931,0.00017123,2]
[352639309,1739213446337,-195.618508,0.00017165,2]
[352639310,1739213446348,-195.618508,0.00017165,2]
[352639311,1739213446357,-195.618508,0.00017165,2]
[352639312,1739213446367,-195.618508,0.00017165,2]
[352639313,1739213446377,-195.618508,0.00017165,2]
[352639314,1739213446386,-195.618508,0.00017165,2]
[352639315,1739213446395,-195.618508,0.00017165,2]
[352639316,1739213446406,-195.618508,0.00017165,2]
[352639317,1739213446418,-195.618508,0.00017165,2]
[352639318,1739213446427,-195.618508,0.00017165,2]
[352639319,1739213446437,-195.618508,0.00017165,2]
[352639320,1739213446446,-195.618508,0.00017165,2]
[352639321,1739213446455,-195.618508,0.00017165,2]
[352639322,1739213446465,-195.618508,0.00017165,2]
[352639323,1739213446474,-195.618508,0.00017165,2]
[352639324,1739213446483,-195.618508,0.00017165,2]
[352639325,1739213446493,-195.618508,0.00017165,2]
[352639326,1739213446502,-195.618508,0.00017165,2]
[352639327,1739213446512,-195.618508,0.00017165,2]
[352639328,1739213446521,-195.618499,0.00017165,2]
[352639329,1739213446531,-151.0,0.00017165,2]
[352639330,1739213446540,-151.0,0.00017165,2]
[352639331,1739213446550,-151.0,0.00017165,2]
[352639332,1739213446559,-151.0,0.00017165,2]
[352639333,1739213446567,-151.0,0.00017165,2]
[352639334,1739213446576,-272.452072,0.00017165,2]
[352639335,1739213446586,-151.0,0.00017165,2]
[352639336,1739213446595,-500.0,0.00017173,2]
[352639337,1739213446604,-151.0,0.00017176,2]
[352639338,1739213446612,-151.0,0.00017176,2]
[352639339,1739213446621,-151.0,0.00017176,2]
[352639340,1739213446630,-151.0,0.00017176,2]
[352639341,1739213446639,-151.0,0.00017176,2]
[352639342,1739213446648,-151.0,0.00017176,2]
[352639343,1739213446657,-151.0,0.00017176,2]
[352639344,1739213446667,-151.0,0.00017176,2]
[352639345,1739213446676,-151.0,0.00017176,2]
[352639346,1739213446686,-151.0,0.00017176,2]
[352639347,1739213446695,-151.0,0.00017176,2]
[352639348,1739213446705,-151.0,0.00017176,2]
[352639349,1739213446714,-151.0,0.00017176,2]
[352639350,1739213446724,-175.282618,0.00017176,2]
[352639351,1739213446733,-151.0,0.00017176,2]
[352639352,1739213446743,-151.0,0.00017176,2]
[352639353,1739213446752,-151.0,0.00017176,2]
[352639354,1739213446762,-151.0,0.00017176,2]
[352639355,1739213446771,-151.0,0.00017176,2]
[352639356,1739213446781,-151.0,0.00017176,2]
[352639357,1739213446791,-151.0,0.00017176,2]
[352639358,1739213446800,-151.0,0.00017176,2]
[352639359,1739213446809,-151.0,0.00017176,2]
[352639360,1739213446818,-151.0,0.00017176,2]
[352639361,1739213446827,-151.0,0.00017176,2]
[352639362,1739213446836,-151.0,0.00017176,2]
[352639363,1739213446845,-151.0,0.00017176,2]
[352639364,1739213446854,-151.0,0.00017176,2]
[352639365,1739213446863,-158.791432,0.00017176,2]
[352639366,1739213446873,-156.33211,0.00017176,2]
[352639367,1739213446882,-156.33211,0.00017176,2]
[352639368,1739213446892,-156.33211,0.00017176,2]
[352639369,1739213446901,-156.33211,0.00017176,2]
[352639370,1739213446911,-156.33211,0.00017176,2]
[352639371,1739213446921,-156.33211,0.00017176,2]
[352639372,1739213446930,-156.33211,0.00017176,2]
[352639373,1739213446941,-156.33211,0.00017176,2]